[Event "Late-Titled-Tuesday-Blitz-September-12-2023"]
[Site "Chess.com"]
[Date "2023.09.12"]
[Round "3"]
[White "Lennis93"]
[Black "GMBenjaminBok"]
[Result "0-1"]
[WhiteElo "2713"]
[BlackElo "3030"]
[TimeControl "180+1"]
[EndTime "14:26:39 PDT"]
[Termination "GMBenjaminBok won by checkmate"]

1. Nf3 {[%clk 0:03:00.9]} 1... d5 {[%clk 0:02:59.3]} 2. g3 {[%clk 0:02:56]} 2...
c6 {[%clk 0:02:59.1]} 3. Bg2 {[%clk 0:02:56.3]} 3... Bg4 {[%clk 0:02:59.7]} 4.
O-O {[%clk 0:02:56.4]} 4... Nd7 {[%clk 0:03:00.3]} 5. d4 {[%clk 0:02:50.1]} 5...
e6 {[%clk 0:03:00.2]} 6. Nbd2 {[%clk 0:02:47.6]} 6... Ngf6 {[%clk 0:02:59.5]} 7.
c3 {[%clk 0:02:47.1]} 7... Be7 {[%clk 0:02:59.1]} 8. Qb3 {[%clk 0:02:46.9]} 8...
Qb6 {[%clk 0:02:58]} 9. Re1 {[%clk 0:02:46.6]} 9... h6 {[%clk 0:02:55.4]} 10. e4
{[%clk 0:02:46.2]} 10... O-O {[%clk 0:02:55.5]} 11. e5 {[%clk 0:02:45.1]} 11...
Nh7 {[%clk 0:02:55.4]} 12. h3 {[%clk 0:02:41.3]} 12... Bf5 {[%clk 0:02:52.1]}
13. c4 {[%clk 0:02:32.5]} 13... Rfd8 {[%clk 0:02:20]} 14. Nf1 {[%clk 0:02:11.7]}
14... Qxb3 {[%clk 0:01:14.2]} 15. axb3 {[%clk 0:02:09.7]} 15... Bc2 {[%clk
0:01:13.9]} 16. Re3 {[%clk 0:01:56.2]} 16... dxc4 {[%clk 0:01:00.8]} 17. bxc4
{[%clk 0:01:55.5]} 17... Nb6 {[%clk 0:01:00.9]} 18. b3 {[%clk 0:01:53.1]} 18...
a5 {[%clk 0:00:55.6]} 19. Ba3 {[%clk 0:01:52.5]} 19... Bxa3 {[%clk 0:00:54]} 20.
Rxa3 {[%clk 0:01:53.4]} 20... a4 {[%clk 0:00:54.3]} 21. N1d2 {[%clk 0:00:29]}
21... axb3 {[%clk 0:00:54.4]} 22. Raxb3 {[%clk 0:00:23]} 22... Bxb3 {[%clk
0:00:48.5]} 23. Rxb3 {[%clk 0:00:23.9]} 23... Na4 {[%clk 0:00:33.2]} 24. c5
{[%clk 0:00:24.4]} 24... Ng5 {[%clk 0:00:26.8]} 25. Rxb7 {[%clk 0:00:19.2]}
25... Nxf3+ {[%clk 0:00:23.5]} 26. Nxf3 {[%clk 0:00:20.1]} 26... Nc3 {[%clk
0:00:23.4]} 27. Rc7 {[%clk 0:00:20]} 27... Ne2+ {[%clk 0:00:21.7]} 28. Kh2
{[%clk 0:00:20.4]} 28... Nxd4 {[%clk 0:00:22.1]} 29. Nd2 {[%clk 0:00:18.7]}
29... Nb5 {[%clk 0:00:19.9]} 30. Rxc6 {[%clk 0:00:13.6]} 30... Rxd2 {[%clk
0:00:19.7]} 31. Rb6 {[%clk 0:00:14.1]} 31... Raa2 {[%clk 0:00:19.8]} 32. Rb8+
{[%clk 0:00:10.2]} 32... Kh7 {[%clk 0:00:19.7]} 33. Be4+ {[%clk 0:00:10.8]}
33... g6 {[%clk 0:00:20.3]} 34. Rxb5 {[%clk 0:00:11.1]} 34... Rxf2+ {[%clk
0:00:20.4]} 35. Kg1 {[%clk 0:00:11.6]} 35... Rfe2 {[%clk 0:00:20.7]} 36. Bb1
{[%clk 0:00:09.5]} 36... Re1# {[%clk 0:00:20.6]} 0-1

[Event "Late-Titled-Tuesday-Blitz-September-12-2023"]
[Site "Chess.com"]
[Date "2023.09.12"]
[Round "3"]
[White "bazar-wokzal"]
[Black "Roedor"]
[Result "1-0"]
[WhiteElo "2572"]
[BlackElo "2413"]
[TimeControl "180+1"]
[EndTime "14:26:39 PDT"]
[Termination "bazar-wokzal won on time"]

1. e4 {[%clk 0:03:00.9]} 1... e5 {[%clk 0:02:55]} 2. Bc4 {[%clk 0:03:00.1]} 2...
Nc6 {[%clk 0:02:50.8]} 3. f4 {[%clk 0:02:59.6]} 3... Nf6 {[%clk 0:02:46.7]} 4.
Nc3 {[%clk 0:02:58.9]} 4... Nxe4 {[%clk 0:02:45.4]} 5. Nf3 {[%clk 0:02:57.5]}
5... Nd6 {[%clk 0:02:43.5]} 6. Bb3 {[%clk 0:02:55]} 6... e4 {[%clk 0:02:43.6]}
7. Ng5 {[%clk 0:02:54.6]} 7... Be7 {[%clk 0:02:30.1]} 8. Ncxe4 {[%clk
0:02:49.1]} 8... Bxg5 {[%clk 0:02:09.6]} 9. Nxd6+ {[%clk 0:02:00.6]} 9... cxd6
{[%clk 0:02:10.5]} 10. fxg5 {[%clk 0:02:00.8]} 10... Qxg5 {[%clk 0:01:55.8]} 11.
O-O {[%clk 0:02:00.1]} 11... O-O {[%clk 0:01:52.8]} 12. d4 {[%clk 0:01:57.3]}
12... Qh4 {[%clk 0:01:42.2]} 13. c3 {[%clk 0:01:56.5]} 13... b6 {[%clk
0:01:27.6]} 14. Bf4 {[%clk 0:01:39.8]} 14... Ba6 {[%clk 0:01:23.4]} 15. Bg3
{[%clk 0:01:27.2]} 15... Qh6 {[%clk 0:01:16.2]} 16. Rf5 {[%clk 0:01:23.7]} 16...
Rae8 {[%clk 0:01:09.8]} 17. Qf3 {[%clk 0:01:15.8]} 17... Be2 {[%clk 0:01:02.4]}
18. Qf2 {[%clk 0:01:13.3]} 18... Qg6 {[%clk 0:00:44]} 19. Re1 {[%clk 0:01:07.1]}
19... Na5 {[%clk 0:00:06.2]} 20. Bc2 {[%clk 0:01:04.3]} 20... Bc4 {[%clk
0:00:05.4]} 21. Rxe8 {[%clk 0:00:34]} 21... Rxe8 {[%clk 0:00:06.3]} 22. Re5
{[%clk 0:00:33.8]} 22... Rxe5 {[%clk 0:00:02.7]} 23. Bxg6 {[%clk 0:00:33]} 23...
Re2 {[%clk 0:00:02.9]} 24. Bxf7+ {[%clk 0:00:29.6]} 24... Kh8 {[%clk 0:00:03.1]}
25. Qf4 {[%clk 0:00:19.8]} 25... Bxf7 {[%clk 0:00:01.7]} 26. Qxf7 {[%clk
0:00:19.3]} 26... h6 {[%clk 0:00:02.6]} 27. Bxd6 {[%clk 0:00:18.3]} 27... Nc6
{[%clk 0:00:02.9]} 28. d5 {[%clk 0:00:17.3]} 1-0

[Event "Late-Titled-Tuesday-Blitz-September-12-2023"]
[Site "Chess.com"]
[Date "2023.09.12"]
[Round "3"]
[White "robertoalejandro10"]
[Black "canary2016"]
[Result "1-0"]
[WhiteElo "2511"]
[BlackElo "2102"]
[TimeControl "180+1"]
[EndTime "14:26:39 PDT"]
[Termination "robertoalejandro10 won on time"]

1. Nf3 {[%clk 0:02:33.9]} 1... Nf6 {[%clk 0:02:57.9]} 2. b3 {[%clk 0:02:34]}
2... g6 {[%clk 0:02:56.9]} 3. Bb2 {[%clk 0:02:34.6]} 3... Bg7 {[%clk 0:02:57.3]}
4. c4 {[%clk 0:02:34.3]} 4... O-O {[%clk 0:02:56.5]} 5. g3 {[%clk 0:02:34.4]}
5... d5 {[%clk 0:02:45.8]} 6. Bg2 {[%clk 0:02:31.8]} 6... c5 {[%clk 0:02:25.7]}
7. cxd5 {[%clk 0:02:29.8]} 7... Nxd5 {[%clk 0:02:25]} 8. Bxg7 {[%clk 0:02:29.4]}
8... Kxg7 {[%clk 0:02:25.9]} 9. O-O {[%clk 0:02:29.8]} 9... Nc6 {[%clk 0:02:25]}
10. Qc1 {[%clk 0:02:28]} 10... b6 {[%clk 0:02:12.3]} 11. d4 {[%clk 0:02:25.7]}
11... Nxd4 {[%clk 0:02:07.9]} 12. Nxd4 {[%clk 0:02:25.8]} 12... cxd4 {[%clk
0:02:05]} 13. Qb2 {[%clk 0:02:26.3]} 13... Rb8 {[%clk 0:01:55]} 14. Qxd4+ {[%clk
0:02:24.6]} 14... Nf6 {[%clk 0:01:55.1]} 15. Qb2 {[%clk 0:02:24.6]} 15... Ba6
{[%clk 0:01:51.4]} 16. Nc3 {[%clk 0:02:10.3]} 16... Qc7 {[%clk 0:01:31.9]} 17.
Nd5 {[%clk 0:02:02]} 17... Qd6 {[%clk 0:01:23]} 18. Rfd1 {[%clk 0:02:00.7]}
18... Rfd8 {[%clk 0:01:18.6]} 19. h3 {[%clk 0:01:59.2]} 19... Bb7 {[%clk
0:01:16.6]} 20. e4 {[%clk 0:01:55.1]} 20... Bxd5 {[%clk 0:01:13]} 21. Rxd5
{[%clk 0:01:53.3]} 21... Qc7 {[%clk 0:01:10.9]} 22. Rc1 {[%clk 0:01:51.3]} 22...
Qb7 {[%clk 0:01:03.3]} 23. Rxd8 {[%clk 0:01:48.1]} 23... Rxd8 {[%clk 0:00:58.8]}
24. e5 {[%clk 0:01:48.3]} 24... Nd5 {[%clk 0:00:43.7]} 25. e6+ {[%clk
0:01:40.5]} 25... f6 {[%clk 0:00:43.8]} 26. Rd1 {[%clk 0:01:38.8]} 26... Rd6
{[%clk 0:00:21]} 27. Qd2 {[%clk 0:00:51.8]} 27... Qc8 {[%clk 0:00:03.4]} 28.
Bxd5 {[%clk 0:00:45.9]} 28... Qc5 {[%clk 0:00:02.8]} 29. Qd4 {[%clk 0:00:43.6]}
29... Qc2 {[%clk 0:00:02.6]} 30. Rd2 {[%clk 0:00:42.8]} 30... Qc1+ {[%clk
0:00:02.9]} 31. Kg2 {[%clk 0:00:43.4]} 31... Qb1 {[%clk 0:00:03.2]} 32. Qe3
{[%clk 0:00:38.4]} 32... Qc1 {[%clk 0:00:02.9]} 33. Rd3 {[%clk 0:00:33.7]} 33...
Qc2 {[%clk 0:00:02.8]} 34. Bc4 {[%clk 0:00:28.9]} 34... Qb1 {[%clk 0:00:02.4]}
35. Rxd6 {[%clk 0:00:27.8]} 1-0

[Event "Late-Titled-Tuesday-Blitz-September-12-2023"]
[Site "Chess.com"]
[Date "2023.09.12"]
[Round "3"]
[White "ChessSwole"]
[Black "zverr1"]
[Result "1-0"]
[WhiteElo "2703"]
[BlackElo "2471"]
[TimeControl "180+1"]
[EndTime "14:26:40 PDT"]
[Termination "ChessSwole won by checkmate"]

1. d4 {[%clk 0:03:00.9]} 1... Nf6 {[%clk 0:03:00.4]} 2. c4 {[%clk 0:02:59.5]}
2... g6 {[%clk 0:03:01]} 3. Nc3 {[%clk 0:02:58.9]} 3... d5 {[%clk 0:03:01.7]} 4.
Nf3 {[%clk 0:02:56.1]} 4... Bg7 {[%clk 0:03:01.5]} 5. h4 {[%clk 0:02:56.4]} 5...
O-O {[%clk 0:02:55.7]} 6. h5 {[%clk 0:02:54.9]} 6... dxc4 {[%clk 0:02:54.3]} 7.
hxg6 {[%clk 0:02:52.9]} 7... hxg6 {[%clk 0:02:48.9]} 8. e4 {[%clk 0:02:50.5]}
8... c5 {[%clk 0:02:44.6]} 9. d5 {[%clk 0:02:48]} 9... b5 {[%clk 0:02:43.6]} 10.
e5 {[%clk 0:02:40.9]} 10... Ng4 {[%clk 0:02:34.3]} 11. Bf4 {[%clk 0:02:40.3]}
11... Nd7 {[%clk 0:02:14.4]} 12. Qe2 {[%clk 0:02:27.7]} 12... Nb6 {[%clk
0:02:04.9]} 13. O-O-O {[%clk 0:02:23.5]} 13... b4 {[%clk 0:01:59.4]} 14. Ne4
{[%clk 0:02:21.9]} 14... Nxd5 {[%clk 0:01:51.3]} 15. Qxc4 {[%clk 0:02:19.7]}
15... Be6 {[%clk 0:01:37.9]} 16. Neg5 {[%clk 0:01:50.9]} 16... Nxf2 {[%clk
0:01:16.2]} 17. Be2 {[%clk 0:01:37.3]} 17... Nxh1 {[%clk 0:01:12.3]} 18. Rxh1
{[%clk 0:01:36.3]} 18... Qa5 {[%clk 0:01:04.7]} 19. Nxe6 {[%clk 0:01:33.2]}
19... fxe6 {[%clk 0:01:04.1]} 20. Bd2 {[%clk 0:01:19]} 20... Rad8 {[%clk
0:00:22.6]} 21. Qg4 {[%clk 0:01:16.3]} 21... Qxa2 {[%clk 0:00:19]} 22. Qxe6+
{[%clk 0:01:12.5]} 22... Rf7 {[%clk 0:00:19.4]} 23. Ng5 {[%clk 0:01:07.4]} 23...
Qa1+ {[%clk 0:00:18.3]} 24. Kc2 {[%clk 0:01:07.4]} 24... b3+ {[%clk 0:00:18.5]}
25. Kxb3 {[%clk 0:00:47.4]} 25... Rb8+ {[%clk 0:00:17.8]} 26. Kc4 {[%clk
0:00:47.9]} 26... Qa4+ {[%clk 0:00:16.7]} 27. Kxc5 {[%clk 0:00:34.9]} 27... Rf8
{[%clk 0:00:05.3]} 28. Qxg6 {[%clk 0:00:20]} 28... Rf5 {[%clk 0:00:02.8]} 29.
Rh8+ {[%clk 0:00:17.9]} 29... Kxh8 {[%clk 0:00:02.5]} 30. Qh7# {[%clk
0:00:18.8]} 1-0

[Event "Late-Titled-Tuesday-Blitz-September-12-2023"]
[Site "Chess.com"]
[Date "2023.09.12"]
[Round "3"]
[White "Alex_Banzea"]
[Black "BogdanDeac"]
[Result "0-1"]
[WhiteElo "2640"]
[BlackElo "2941"]
[TimeControl "180+1"]
[EndTime "14:26:42 PDT"]
[Termination "BogdanDeac won by resignation"]

1. d4 {[%clk 0:03:00.9]} 1... f5 {[%clk 0:02:59.4]} 2. Bf4 {[%clk 0:02:57.2]}
2... Nf6 {[%clk 0:02:59.3]} 3. e3 {[%clk 0:02:57.6]} 3... d6 {[%clk 0:02:56.9]}
4. Nf3 {[%clk 0:02:57.9]} 4... g6 {[%clk 0:02:56]} 5. Be2 {[%clk 0:02:58.3]}
5... Bg7 {[%clk 0:02:56.2]} 6. h3 {[%clk 0:02:58.8]} 6... O-O {[%clk 0:02:55.8]}
7. O-O {[%clk 0:02:59.3]} 7... Qe8 {[%clk 0:02:56]} 8. c4 {[%clk 0:02:59.3]}
8... Nc6 {[%clk 0:02:54.6]} 9. Nc3 {[%clk 0:02:59.2]} 9... e5 {[%clk 0:02:54.4]}
10. Bh2 {[%clk 0:02:59]} 10... h6 {[%clk 0:02:49.7]} 11. c5 {[%clk 0:02:59.2]}
11... Qe7 {[%clk 0:02:21.3]} 12. Rc1 {[%clk 0:02:00.6]} 12... Kh7 {[%clk
0:02:07.7]} 13. cxd6 {[%clk 0:01:52.2]} 13... cxd6 {[%clk 0:02:06.9]} 14. dxe5
{[%clk 0:01:53.1]} 14... dxe5 {[%clk 0:02:06.8]} 15. Bb5 {[%clk 0:01:47.2]}
15... Rd8 {[%clk 0:02:04.3]} 16. Qa4 {[%clk 0:01:47.2]} 16... Bd7 {[%clk
0:01:58.3]} 17. Qa3 {[%clk 0:01:41.2]} 17... Qxa3 {[%clk 0:01:53.1]} 18. bxa3
{[%clk 0:01:42.1]} 18... e4 {[%clk 0:01:51.6]} 19. Bxc6 {[%clk 0:01:42.5]} 19...
bxc6 {[%clk 0:01:45.8]} 20. Ne5 {[%clk 0:01:37.8]} 20... Be8 {[%clk 0:01:44.7]}
21. Rfd1 {[%clk 0:01:20]} 21... Rac8 {[%clk 0:01:31.2]} 22. Na4 {[%clk
0:01:16.4]} 22... Rxd1+ {[%clk 0:01:03.7]} 23. Rxd1 {[%clk 0:01:17.3]} 23... c5
{[%clk 0:01:04.2]} 24. Nb2 {[%clk 0:01:17.9]} 24... Nd7 {[%clk 0:00:48.7]} 25.
Nxd7 {[%clk 0:01:14.6]} 25... Bxb2 {[%clk 0:00:47.8]} 26. Be5 {[%clk 0:00:49]}
26... Bxe5 {[%clk 0:00:45.2]} 27. Nxe5 {[%clk 0:00:49.9]} 27... c4 {[%clk
0:00:45.6]} 28. Kf1 {[%clk 0:00:32.8]} 28... c3 {[%clk 0:00:39.5]} 29. Ke1
{[%clk 0:00:32.1]} 29... c2 {[%clk 0:00:29]} 30. Rc1 {[%clk 0:00:31.9]} 30...
Kg7 {[%clk 0:00:22]} 31. f4 {[%clk 0:00:30.4]} 31... Ba4 {[%clk 0:00:20.2]} 32.
Kd2 {[%clk 0:00:22.3]} 32... g5 {[%clk 0:00:19.9]} 33. g3 {[%clk 0:00:21.2]}
33... Kf6 {[%clk 0:00:18.9]} 34. Rg1 {[%clk 0:00:17]} 34... Rd8+ {[%clk
0:00:15.7]} 0-1

[Event "Late-Titled-Tuesday-Blitz-September-12-2023"]
[Site "Chess.com"]
[Date "2023.09.12"]
[Round "3"]
[White "rookoco"]
[Black "Oleksandr_Bortnyk"]
[Result "0-1"]
[WhiteElo "2708"]
[BlackElo "3015"]
[TimeControl "180+1"]
[EndTime "14:26:44 PDT"]
[Termination "Oleksandr_Bortnyk won by resignation"]

1. e4 {[%clk 0:03:00.9]} 1... Nf6 {[%clk 0:02:57]} 2. d3 {[%clk 0:02:56.2]} 2...
e5 {[%clk 0:02:52.8]} 3. g3 {[%clk 0:02:54.1]} 3... Bc5 {[%clk 0:02:51]} 4. Bg2
{[%clk 0:02:53.6]} 4... c6 {[%clk 0:02:44.5]} 5. Nf3 {[%clk 0:02:52.6]} 5... d5
{[%clk 0:02:42.7]} 6. exd5 {[%clk 0:02:48.1]} 6... O-O {[%clk 0:02:30.4]} 7. O-O
{[%clk 0:02:46.3]} 7... Qxd5 {[%clk 0:02:26.3]} 8. Nc3 {[%clk 0:02:34.9]} 8...
Qe6 {[%clk 0:02:21.1]} 9. Re1 {[%clk 0:02:16.7]} 9... Nbd7 {[%clk 0:02:20.6]}
10. d4 {[%clk 0:02:15.5]} 10... Bb6 {[%clk 0:02:19.6]} 11. Nxe5 {[%clk 0:02:11]}
11... Nxe5 {[%clk 0:02:19.8]} 12. Rxe5 {[%clk 0:02:10.3]} 12... Qd6 {[%clk
0:02:18.9]} 13. Ne4 {[%clk 0:01:14.9]} 13... Qxd4 {[%clk 0:02:01.8]} 14. Nxf6+
{[%clk 0:01:10.8]} 14... gxf6 {[%clk 0:02:02.7]} 15. Qxd4 {[%clk 0:01:06.6]}
15... Bxd4 {[%clk 0:02:03.6]} 16. Re4 {[%clk 0:01:05.2]} 16... Rd8 {[%clk
0:02:02.7]} 17. Bh6 {[%clk 0:00:59.1]} 17... Bf5 {[%clk 0:01:54.1]} 18. Re2
{[%clk 0:00:58]} 18... Bxb2 {[%clk 0:01:53.3]} 19. Rb1 {[%clk 0:00:57]} 19...
Be5 {[%clk 0:01:46.6]} 20. h3 {[%clk 0:00:53.9]} 20... Rd7 {[%clk 0:01:44.5]}
21. f4 {[%clk 0:00:50.4]} 21... Bd4+ {[%clk 0:01:43.1]} 22. Kh2 {[%clk
0:00:50.4]} 22... Be6 {[%clk 0:01:40.5]} 23. g4 {[%clk 0:00:32]} 23... Bxa2
{[%clk 0:01:28]} 24. Rd1 {[%clk 0:00:31.2]} 24... Rdd8 {[%clk 0:00:54.9]} 25. c3
{[%clk 0:00:20.5]} 25... Bxc3 {[%clk 0:00:33]} 26. Rxd8+ {[%clk 0:00:19.5]}
26... Rxd8 {[%clk 0:00:33.9]} 27. Rxa2 {[%clk 0:00:19.5]} 27... a5 {[%clk
0:00:34.7]} 28. Ra3 {[%clk 0:00:18]} 28... Bb4 {[%clk 0:00:33.9]} 29. Re3 {[%clk
0:00:17.7]} 29... a4 {[%clk 0:00:32.3]} 30. Re4 {[%clk 0:00:17.2]} 30... c5
{[%clk 0:00:26.6]} 31. Bf1 {[%clk 0:00:17.5]} 31... a3 {[%clk 0:00:23.7]} 32.
Bc4 {[%clk 0:00:17.8]} 32... b5 {[%clk 0:00:24.4]} 33. Ba2 {[%clk 0:00:15.3]}
33... c4 {[%clk 0:00:24.9]} 34. f5 {[%clk 0:00:13.8]} 34... Bd2 {[%clk
0:00:22.5]} 35. g5 {[%clk 0:00:09.3]} 35... Bxg5 {[%clk 0:00:22.6]} 36. Bxg5
{[%clk 0:00:08.8]} 36... fxg5 {[%clk 0:00:23.2]} 37. Bxc4 {[%clk 0:00:07.1]}
37... bxc4 {[%clk 0:00:22.5]} 38. Rxc4 {[%clk 0:00:08]} 38... Ra8 {[%clk
0:00:22.3]} 0-1

[Event "Late-Titled-Tuesday-Blitz-September-12-2023"]
[Site "Chess.com"]
[Date "2023.09.12"]
[Round "3"]
[White "Mikasinski"]
[Black "kreonx"]
[Result "1-0"]
[WhiteElo "2658"]
[BlackElo "2456"]
[TimeControl "180+1"]
[EndTime "14:26:45 PDT"]
[Termination "Mikasinski won by resignation"]

1. e4 {[%clk 0:03:00.9]} 1... c6 {[%clk 0:02:57]} 2. d4 {[%clk 0:03:00.9]} 2...
d5 {[%clk 0:02:56.3]} 3. e5 {[%clk 0:03:01.4]} 3... c5 {[%clk 0:02:56.3]} 4.
dxc5 {[%clk 0:03:02.1]} 4... e6 {[%clk 0:02:53.9]} 5. Nf3 {[%clk 0:03:00.8]}
5... Nd7 {[%clk 0:02:52]} 6. Bd3 {[%clk 0:02:41.4]} 6... Nxc5 {[%clk 0:02:49.5]}
7. O-O {[%clk 0:02:41.3]} 7... Nxd3 {[%clk 0:02:49.6]} 8. Qxd3 {[%clk
0:02:42.2]} 8... Ne7 {[%clk 0:02:48.8]} 9. c4 {[%clk 0:02:39.8]} 9... dxc4
{[%clk 0:02:42.6]} 10. Qxc4 {[%clk 0:02:37.2]} 10... Nd5 {[%clk 0:02:41.5]} 11.
Rd1 {[%clk 0:02:34.7]} 11... Bd7 {[%clk 0:02:41.7]} 12. Qb3 {[%clk 0:02:34.4]}
12... Bc6 {[%clk 0:02:41.4]} 13. Nd4 {[%clk 0:02:34.7]} 13... Bc5 {[%clk
0:02:38.4]} 14. Nc3 {[%clk 0:02:26.9]} 14... Qb6 {[%clk 0:02:30.9]} 15. Be3
{[%clk 0:02:13.6]} 15... Qxb3 {[%clk 0:02:17]} 16. Nxb3 {[%clk 0:02:13.2]} 16...
Bxe3 {[%clk 0:02:12.3]} 17. fxe3 {[%clk 0:02:05.9]} 17... Nxe3 {[%clk
0:02:12.9]} 18. Rd2 {[%clk 0:02:04.7]} 18... Nc4 {[%clk 0:02:03.7]} 19. Re2
{[%clk 0:02:02.7]} 19... O-O-O {[%clk 0:02:03.5]} 20. Rc1 {[%clk 0:02:01]} 20...
Kb8 {[%clk 0:01:55.3]} 21. h3 {[%clk 0:01:59.8]} 21... Rc8 {[%clk 0:01:33.2]}
22. Nd4 {[%clk 0:01:57.4]} 22... Rhd8 {[%clk 0:01:31.4]} 23. Nxc6+ {[%clk
0:01:54.4]} 23... Rxc6 {[%clk 0:01:31.2]} 24. Rf1 {[%clk 0:01:52.8]} 24... Rd7
{[%clk 0:01:24.4]} 25. Ne4 {[%clk 0:01:46.6]} 25... Nxe5 {[%clk 0:01:19.6]} 26.
Ng5 {[%clk 0:01:45.5]} 26... f6 {[%clk 0:01:20.2]} 27. Nxh7 {[%clk 0:01:45.5]}
27... Rc8 {[%clk 0:01:16.1]} 28. Nf8 {[%clk 0:01:33.3]} 28... Rxf8 {[%clk
0:01:10.5]} 29. Rxe5 {[%clk 0:01:33]} 29... Rd6 {[%clk 0:01:02.1]} 30. h4 {[%clk
0:01:25.9]} 30... Rh8 {[%clk 0:01:01]} 31. Re4 {[%clk 0:01:26]} 31... Rc8 {[%clk
0:01:01.3]} 32. Rf2 {[%clk 0:01:25.7]} 32... Rc1+ {[%clk 0:01:01.2]} 33. Kh2
{[%clk 0:01:25.7]} 33... Rcd1 {[%clk 0:01:01.6]} 34. Rfe2 {[%clk 0:01:22.7]}
34... e5 {[%clk 0:01:02]} 35. Rg4 {[%clk 0:01:22.7]} 35... Rd7 {[%clk
0:01:00.7]} 36. h5 {[%clk 0:01:19.3]} 36... Ra1 {[%clk 0:01:00.5]} 37. a3 {[%clk
0:01:18.5]} 37... Rad1 {[%clk 0:00:57.8]} 38. Kg3 {[%clk 0:01:16.8]} 38... R1d3+
{[%clk 0:00:55.5]} 39. Kh2 {[%clk 0:01:16.5]} 39... a6 {[%clk 0:00:55]} 40. Rf2
{[%clk 0:01:14.1]} 40... R3d6 {[%clk 0:00:50.8]} 41. Kg3 {[%clk 0:01:12.4]}
41... Rd3+ {[%clk 0:00:50.1]} 42. Kh4 {[%clk 0:01:12.3]} 42... R3d4 {[%clk
0:00:49.8]} 43. Rf3 {[%clk 0:01:00.8]} 43... Rxg4+ {[%clk 0:00:46.9]} 44. Kxg4
{[%clk 0:01:01.7]} 44... Rd4+ {[%clk 0:00:36.3]} 45. Kf5 {[%clk 0:01:01.8]}
45... Rh4 {[%clk 0:00:36.7]} 46. g4 {[%clk 0:00:58.5]} 46... Kc7 {[%clk
0:00:36.2]} 47. Rg3 {[%clk 0:00:57.8]} 47... Kd6 {[%clk 0:00:35.8]} 48. Kg6
{[%clk 0:00:58.5]} 48... e4 {[%clk 0:00:33.4]} 49. Kxg7 {[%clk 0:00:59.1]} 49...
Ke5 {[%clk 0:00:34]} 50. h6 {[%clk 0:00:59.3]} 50... Kf4 {[%clk 0:00:34.2]} 51.
Rg1 {[%clk 0:00:59.4]} 51... e3 {[%clk 0:00:34.2]} 52. h7 {[%clk 0:00:59.8]}
52... e2 {[%clk 0:00:33.2]} 53. h8=Q {[%clk 0:00:59.1]} 53... Rxh8 {[%clk
0:00:30]} 54. Kxh8 {[%clk 0:01:00]} 54... f5 {[%clk 0:00:20.8]} 55. gxf5 {[%clk
0:00:57.3]} 55... Kxf5 {[%clk 0:00:21.7]} 56. Re1 {[%clk 0:00:57.3]} 56... Ke4
{[%clk 0:00:21.7]} 57. Rxe2+ {[%clk 0:00:58.2]} 57... Kd3 {[%clk 0:00:22.4]} 58.
Rh2 {[%clk 0:00:58.5]} 1-0

[Event "Late-Titled-Tuesday-Blitz-September-12-2023"]
[Site "Chess.com"]
[Date "2023.09.12"]
[Round "3"]
[White "Abund"]
[Black "LevonAronian"]
[Result "0-1"]
[WhiteElo "2741"]
[BlackElo "3068"]
[TimeControl "180+1"]
[EndTime "14:26:46 PDT"]
[Termination "LevonAronian won on time"]

1. e4 {[%clk 0:03:00.9]} 1... c5 {[%clk 0:02:59.3]} 2. Nf3 {[%clk 0:03:01.1]}
2... e6 {[%clk 0:02:59.4]} 3. c3 {[%clk 0:03:01.3]} 3... d5 {[%clk 0:02:58.7]}
4. exd5 {[%clk 0:03:01.7]} 4... Qxd5 {[%clk 0:02:58.8]} 5. d4 {[%clk 0:03:01.9]}
5... Nf6 {[%clk 0:02:59.3]} 6. Na3 {[%clk 0:03:01.5]} 6... Nc6 {[%clk
0:02:59.3]} 7. Be3 {[%clk 0:03:01]} 7... cxd4 {[%clk 0:02:58.5]} 8. Nb5 {[%clk
0:03:01.2]} 8... Qd7 {[%clk 0:02:58.5]} 9. Nbxd4 {[%clk 0:02:58.9]} 9... Bd6
{[%clk 0:02:58.8]} 10. Nxc6 {[%clk 0:02:48.4]} 10... bxc6 {[%clk 0:02:58.4]} 11.
Bd3 {[%clk 0:02:45.6]} 11... Qc7 {[%clk 0:02:48.9]} 12. Qe2 {[%clk 0:02:40]}
12... c5 {[%clk 0:02:45.2]} 13. Bb5+ {[%clk 0:02:34.4]} 13... Ke7 {[%clk
0:02:45.2]} 14. O-O {[%clk 0:02:22.1]} 14... Bb7 {[%clk 0:02:43.9]} 15. h3
{[%clk 0:02:20.2]} 15... Rab8 {[%clk 0:02:39.1]} 16. Bc4 {[%clk 0:02:16.6]}
16... Bxf3 {[%clk 0:02:29.3]} 17. Qxf3 {[%clk 0:02:13.9]} 17... Rxb2 {[%clk
0:02:17.4]} 18. Bb3 {[%clk 0:02:03.4]} 18... c4 {[%clk 0:02:17]} 19. Bc1 {[%clk
0:01:57.3]} 19... Rxb3 {[%clk 0:02:17]} 20. axb3 {[%clk 0:01:57.3]} 20... cxb3
{[%clk 0:02:17.9]} 21. Be3 {[%clk 0:01:53.1]} 21... a5 {[%clk 0:02:15]} 22. Rfb1
{[%clk 0:01:25.5]} 22... Rb8 {[%clk 0:02:14.3]} 23. Qd1 {[%clk 0:01:14.4]} 23...
Nd5 {[%clk 0:02:04.9]} 24. Rxb3 {[%clk 0:01:10.3]} 24... Nxc3 {[%clk 0:01:58.3]}
25. Rxc3 {[%clk 0:00:41.7]} 25... Qxc3 {[%clk 0:01:57.7]} 26. Bd2 {[%clk
0:00:40.1]} 26... Qe5 {[%clk 0:01:37.3]} 27. g3 {[%clk 0:00:33.7]} 27... Rb5
{[%clk 0:01:28.3]} 28. Bf4 {[%clk 0:00:18.6]} 28... Qd5 {[%clk 0:01:28.1]} 29.
Bxd6+ {[%clk 0:00:18.4]} 29... Qxd6 {[%clk 0:01:28.7]} 30. Qc2 {[%clk
0:00:12.9]} 30... g6 {[%clk 0:01:24.1]} 31. Rd1 {[%clk 0:00:13]} 31... Rc5
{[%clk 0:01:11.5]} 32. Qb1 {[%clk 0:00:10.3]} 32... Qc7 {[%clk 0:01:09.6]} 33.
Qb2 {[%clk 0:00:05.8]} 33... h5 {[%clk 0:01:07.8]} 34. h4 {[%clk 0:00:06]} 34...
e5 {[%clk 0:01:07.7]} 35. Qa3 {[%clk 0:00:03.6]} 35... Kf6 {[%clk 0:01:05.6]}
36. Qf3+ {[%clk 0:00:01.9]} 36... Kg7 {[%clk 0:01:05.8]} 37. Qe3 {[%clk
0:00:02.5]} 37... a4 {[%clk 0:01:04.4]} 38. Ra1 {[%clk 0:00:02.6]} 38... Ra5
{[%clk 0:01:03.7]} 39. Ra3 {[%clk 0:00:03]} 39... Qa7 {[%clk 0:01:02.1]} 40. Qf3
{[%clk 0:00:02.7]} 40... Qc5 {[%clk 0:01:00.3]} 41. Qd3 {[%clk 0:00:02.7]} 41...
e4 {[%clk 0:00:58]} 42. Qe3 {[%clk 0:00:01.3]} 42... Qxe3 {[%clk 0:00:57.7]} 43.
fxe3 {[%clk 0:00:02]} 43... Kf6 {[%clk 0:00:58]} 44. Kf2 {[%clk 0:00:02.8]}
44... Kf5 {[%clk 0:00:58.1]} 45. Ke2 {[%clk 0:00:03.5]} 45... Kg4 {[%clk
0:00:58.1]} 46. Kf2 {[%clk 0:00:04.3]} 46... Kh3 {[%clk 0:00:58.4]} 47. Ra1
{[%clk 0:00:01.9]} 47... a3 {[%clk 0:00:57.6]} 48. Rh1+ {[%clk 0:00:01.5]} 48...
Kg4 {[%clk 0:00:57.7]} 49. Rf1 {[%clk 0:00:01.5]} 49... Rf5+ {[%clk 0:00:56.7]}
0-1